[Event "Titled Tuesday Blitz July 4 Early 2023"]
[White "Flynn, Jacob"]
[Black "Niekras, Dawid"]
[WhiteFideId "2509393"]
[BlackFideId "1160451"]
[WhiteElo "2465"]
[BlackElo "2632"]
[Result "1/2-1/2"]
[Round "3"]
[TimeControl "180+2"]
[Date "2023.07.04"]
[WhiteClock "0:00:13"]
[BlackClock "0:00:02"]
[Board "104"]

1. d4 {[%clk 0:03:00]}  Nf6 {[%clk 0:02:59]} 2. c4 {[%clk 0:02:59]}  g6 {[%clk 0:02:59]} 3. Nc3 {[%clk 0:02:59]}  Bg7 {[%clk 0:03:00]} 4. e4 {[%clk 0:03:00]}  O-O {[%clk 0:03:01]} 5. Be2 {[%clk 0:03:01]}  d6 {[%clk 0:03:01]} 6. Nf3 {[%clk 0:03:01]}  Na6 {[%clk 0:03:01]} 7. Be3 {[%clk 0:02:59]}  e5 {[%clk 0:03:01]} 8. d5 {[%clk 0:02:58]}  Nc5 {[%clk 0:03:00]} 9. Nd2 {[%clk 0:02:57]}  a5 {[%clk 0:03:00]} 10. O-O {[%clk 0:02:54]}  Ne8 {[%clk 0:02:50]} 11. a3 {[%clk 0:02:53]}  f5 {[%clk 0:02:27]} 12. f3 {[%clk 0:02:52]}  f4 {[%clk 0:02:23]} 13. Bf2 {[%clk 0:02:40]}  g5 {[%clk 0:02:23]} 14. b4 {[%clk 0:02:40]}  Na6 {[%clk 0:02:23]} 15. c5 {[%clk 0:02:37]}  Nf6 {[%clk 0:02:14]} 16. c6 {[%clk 0:02:22]}  h5 {[%clk 0:01:45]} 17. b5 {[%clk 0:02:22]}  Nc5 {[%clk 0:01:40]} 18. Bxc5 {[%clk 0:02:21]}  dxc5 {[%clk 0:01:41]} 19. cxb7 {[%clk 0:02:02]}  Bxb7 {[%clk 0:01:41]} 20. Na4 {[%clk 0:02:03]}  Qe7 {[%clk 0:01:29]} 21. Qc2 {[%clk 0:02:00]}  Nd7 {[%clk 0:01:22]} 22. Rac1 {[%clk 0:01:58]}  Bc8 {[%clk 0:01:01]} 23. Nxc5 {[%clk 0:01:58]}  Nb6 {[%clk 0:01:00]} 24. Ne6 {[%clk 0:01:51]}  Bxe6 {[%clk 0:01:00]} 25. dxe6 {[%clk 0:01:51]}  Qxe6 {[%clk 0:00:55]} 26. Bc4 {[%clk 0:01:43]}  Nxc4 {[%clk 0:00:54]} 27. Qxc4 {[%clk 0:01:44]}  Qxc4 {[%clk 0:00:52]} 28. Nxc4 {[%clk 0:01:37]}  a4 {[%clk 0:00:49]} 29. Rfd1 {[%clk 0:01:35]}  Rfd8 {[%clk 0:00:43]} 30. Kf1 {[%clk 0:01:35]}  Kf7 {[%clk 0:00:42]} 31. Ke2 {[%clk 0:01:35]}  Ke6 {[%clk 0:00:42]} 32. Rxd8 {[%clk 0:01:35]}  Rxd8 {[%clk 0:00:43]} 33. Rd1 {[%clk 0:01:35]}  Rb8 {[%clk 0:00:41]} 34. Rd5 {[%clk 0:01:33]}  g4 {[%clk 0:00:34]} 35. Rc5 {[%clk 0:01:22]}  Rb7 {[%clk 0:00:29]} 36. Rc6+ {[%clk 0:01:08]}  Ke7 {[%clk 0:00:26]} 37. Rc5 {[%clk 0:01:03]}  gxf3+ {[%clk 0:00:25]} 38. gxf3 {[%clk 0:01:03]}  Ke6 {[%clk 0:00:26]} 39. Rd5 {[%clk 0:00:58]}  Bf6 {[%clk 0:00:25]} 40. Kd3 {[%clk 0:00:51]}  Rb8 {[%clk 0:00:25]} 41. Kc3 {[%clk 0:00:51]}  h4 {[%clk 0:00:18]} 42. Rc5 {[%clk 0:00:47]}  Kd7 {[%clk 0:00:09]} 43. Rd5+ {[%clk 0:00:41]}  Ke6 {[%clk 0:00:09]} 44. Kb4 {[%clk 0:00:39]}  h3 {[%clk 0:00:09]} 45. Kxa4 {[%clk 0:00:37]}  Rg8 {[%clk 0:00:09]} 46. Kb3 {[%clk 0:00:30]}  Rg2 {[%clk 0:00:09]} 47. Rd2 {[%clk 0:00:31]}  Bh4 {[%clk 0:00:06]} 48. Rd5 {[%clk 0:00:15]}  Bf6 {[%clk 0:00:02]} 49. Rd2 {[%clk 0:00:13]}  Bh4 {[%clk 0:00:03]} 50. Rd5 {[%clk 0:00:13]}  Bf6 {[%clk 0:00:02]} 1/2-1/2


[Site "https://www.chess.com"]

[Event "Titled Tuesday Blitz July 4 Early 2023"]
[White "benny_aizenberg"]
[Black "Sukandar, Irine Kharisma"]
[BlackFideId "7101937"]
[WhiteElo "2625"]
[BlackElo "2459"]
[Result "1-0"]
[Round "3"]
[TimeControl "180+2"]
[Date "2023.07.04"]
[WhiteClock "0:00:03"]
[BlackClock "0:00:00"]
[Board "108"]

1. d4 {[%clk 0:03:00]}  Nf6 {[%clk 0:02:56]} 2. Nc3 {[%clk 0:02:59]}  d5 {[%clk 0:02:51]} 3. Bf4 {[%clk 0:02:59]}  g6 {[%clk 0:02:51]} 4. Qd2 {[%clk 0:02:57]}  c6 {[%clk 0:02:44]} 5. h4 {[%clk 0:02:52]}  h5 {[%clk 0:02:43]} 6. Nf3 {[%clk 0:02:47]}  Bg7 {[%clk 0:02:42]} 7. O-O-O {[%clk 0:02:42]}  O-O {[%clk 0:02:41]} 8. e3 {[%clk 0:02:40]}  b5 {[%clk 0:02:40]} 9. Bd3 {[%clk 0:02:38]}  a5 {[%clk 0:02:37]} 10. Ne5 {[%clk 0:02:35]}  a4 {[%clk 0:02:34]} 11. a3 {[%clk 0:02:26]}  b4 {[%clk 0:02:32]} 12. axb4 {[%clk 0:02:22]}  a3 {[%clk 0:02:32]} 13. bxa3 {[%clk 0:02:20]}  Rxa3 {[%clk 0:02:31]} 14. Kb2 {[%clk 0:02:20]}  Ra7 {[%clk 0:02:18]} 15. Ra1 {[%clk 0:02:08]}  Rb7 {[%clk 0:02:15]} 16. Na4 {[%clk 0:02:07]}  Nfd7 {[%clk 0:02:06]} 17. Nxd7 {[%clk 0:01:38]}  Nxd7 {[%clk 0:02:06]} 18. Qc3 {[%clk 0:01:31]}  e5 {[%clk 0:01:58]} 19. Bxe5 {[%clk 0:01:26]}  Nxe5 {[%clk 0:01:55]} 20. dxe5 {[%clk 0:01:24]}  Qe7 {[%clk 0:01:56]} 21. f4 {[%clk 0:01:05]}  Rxb4+ {[%clk 0:01:54]} 22. Kc1 {[%clk 0:01:03]}  Bg4 {[%clk 0:01:47]} 23. Nc5 {[%clk 0:01:00]}  Rc4 {[%clk 0:01:38]} 24. Bxc4 {[%clk 0:00:54]}  Qxc5 {[%clk 0:01:38]} 25. Ra5 {[%clk 0:00:45]}  Qxc4 {[%clk 0:01:31]} 26. Qxc4 {[%clk 0:00:45]}  dxc4 {[%clk 0:01:32]} 27. Rc5 {[%clk 0:00:45]}  Ra8 {[%clk 0:01:23]} 28. Kd2 {[%clk 0:00:44]}  Be6 {[%clk 0:00:58]} 29. e4 {[%clk 0:00:36]}  Bf8 {[%clk 0:00:56]} 30. Rxc6 {[%clk 0:00:35]}  Bb4+ {[%clk 0:00:56]} 31. Ke3 {[%clk 0:00:33]}  Ra3+ {[%clk 0:00:55]} 32. Kd4 {[%clk 0:00:26]}  Bd2 {[%clk 0:00:47]} 33. Kc5 {[%clk 0:00:20]}  Bxf4 {[%clk 0:00:47]} 34. Kd6 {[%clk 0:00:20]}  Ra5 {[%clk 0:00:45]} 35. Rc5 {[%clk 0:00:16]}  Ra6+ {[%clk 0:00:41]} 36. Ke7 {[%clk 0:00:16]}  Bxe5 {[%clk 0:00:39]} 37. Rxe5 {[%clk 0:00:15]}  Kg7 {[%clk 0:00:33]} 38. Rf1 {[%clk 0:00:16]}  Ra7+ {[%clk 0:00:32]} 39. Kd6 {[%clk 0:00:16]}  Ra2 {[%clk 0:00:31]} 40. Rf2 {[%clk 0:00:16]}  Ra3 {[%clk 0:00:29]} 41. Kc5 {[%clk 0:00:14]}  Ra5+ {[%clk 0:00:19]} 42. Kd4 {[%clk 0:00:15]}  Ra3 {[%clk 0:00:18]} 43. c3 {[%clk 0:00:15]}  Ra1 {[%clk 0:00:17]} 44. Rb5 {[%clk 0:00:14]}  Rd1+ {[%clk 0:00:17]} 45. Kc5 {[%clk 0:00:13]}  Rd3 {[%clk 0:00:17]} 46. Rf3 {[%clk 0:00:13]}  Rd2 {[%clk 0:00:15]} 47. g3 {[%clk 0:00:14]}  Re2 {[%clk 0:00:15]} 48. Kd4 {[%clk 0:00:13]}  Rd2+ {[%clk 0:00:15]} 49. Ke5 {[%clk 0:00:13]}  Re2 {[%clk 0:00:13]} 50. Rb7 {[%clk 0:00:12]}  Re1 {[%clk 0:00:10]} 51. Rc7 {[%clk 0:00:11]}  Re2 {[%clk 0:00:09]} 52. Rc6 {[%clk 0:00:11]}  Re1 {[%clk 0:00:04]} 53. Kf4 {[%clk 0:00:11]}  Re2 {[%clk 0:00:03]} 54. Re3 {[%clk 0:00:11]}  Rf2+ {[%clk 0:00:03]} 55. Ke5 {[%clk 0:00:11]}  Rd2 {[%clk 0:00:03]} 56. Rd6 {[%clk 0:00:10]}  Rg2 {[%clk 0:00:03]} 57. Rd4 {[%clk 0:00:09]}  Rf2 {[%clk 0:00:01]} 58. Kd6 {[%clk 0:00:09]}  Kf8 {[%clk 0:00:01]} 59. e5 {[%clk 0:00:08]}  Kg7 {[%clk 0:00:02]} 60. Ke7 {[%clk 0:00:08]}  Ra2 {[%clk 0:00:01]} 61. Ke8 {[%clk 0:00:04]}  Ra8+ {[%clk 0:00:01]} 62. Rd8 {[%clk 0:00:05]}  Ra7 {[%clk 0:00:02]} 63. Rf3 {[%clk 0:00:04]}  Ra6 {[%clk 0:00:02]} 64. Rf6 {[%clk 0:00:04]}  Ra7 {[%clk 0:00:02]} 65. Rd6 {[%clk 0:00:05]}  Ra8+ {[%clk 0:00:02]} 66. Rd8 {[%clk 0:00:05]}  Ra7 {[%clk 0:00:02]} 67. Rf4 {[%clk 0:00:04]}  Ra6 {[%clk 0:00:02]} 68. Rb8 {[%clk 0:00:04]}  Ra7 {[%clk 0:00:02]} 69. Rd4 {[%clk 0:00:04]}  Ra6 {[%clk 0:00:02]} 70. Rd6 {[%clk 0:00:04]}  Ra5 {[%clk 0:00:02]} 71. Rxe6 {[%clk 0:00:03]}  fxe6 {[%clk 0:00:02]} 72. Rb7+ {[%clk 0:00:04]}  Kh6 {[%clk 0:00:01]} 73. Kf7 {[%clk 0:00:03]}  Rxe5 {[%clk 0:00:02]} 74. Kg8 {[%clk 0:00:04]}  g5 {[%clk 0:00:02]} 75. Rc7 {[%clk 0:00:02]}  gxh4 {[%clk 0:00:01]} 76. gxh4 {[%clk 0:00:03]}  Re4 {[%clk 0:00:00]} 77. Kf7 {[%clk 0:00:03]} 1-0


[Site "https://www.chess.com"]

[Event "Titled Tuesday Blitz July 4 Early 2023"]
[White "Kashlinskaya, Alina"]
[Black "Goncalves, Davi Sulzbacher"]
[WhiteFideId "4198026"]
[BlackFideId "2154510"]
[WhiteElo "2620"]
[BlackElo "2443"]
[Result "1-0"]
[Round "3"]
[TimeControl "180+2"]
[Date "2023.07.04"]
[WhiteClock "0:00:56"]
[BlackClock "0:00:00"]
[Board "111"]

1. Nf3 {[%clk 0:03:00]}  Nf6 {[%clk 0:02:58]} 2. g3 {[%clk 0:03:01]}  g6 {[%clk 0:02:58]} 3. Bg2 {[%clk 0:03:01]}  Bg7 {[%clk 0:02:59]} 4. O-O {[%clk 0:03:01]}  O-O {[%clk 0:02:59]} 5. c4 {[%clk 0:03:01]}  d5 {[%clk 0:02:59]} 6. cxd5 {[%clk 0:03:00]}  Nxd5 {[%clk 0:03:00]} 7. d4 {[%clk 0:03:01]}  Nb6 {[%clk 0:03:00]} 8. Nc3 {[%clk 0:02:59]}  Nc6 {[%clk 0:02:59]} 9. e3 {[%clk 0:03:00]}  e5 {[%clk 0:02:58]} 10. d5 {[%clk 0:03:00]}  Na5 {[%clk 0:02:58]} 11. e4 {[%clk 0:03:00]}  c6 {[%clk 0:02:58]} 12. Bg5 {[%clk 0:02:59]}  f6 {[%clk 0:02:52]} 13. Be3 {[%clk 0:02:59]}  Nac4 {[%clk 0:02:43]} 14. Bc5 {[%clk 0:02:56]}  Re8 {[%clk 0:02:12]} 15. b3 {[%clk 0:02:52]}  Nd7 {[%clk 0:01:58]} 16. Bxa7 {[%clk 0:02:24]}  Rxa7 {[%clk 0:01:36]} 17. bxc4 {[%clk 0:02:24]}  Qa5 {[%clk 0:01:33]} 18. Qc2 {[%clk 0:02:19]}  Nc5 {[%clk 0:01:26]} 19. Nd2 {[%clk 0:02:19]}  Bg4 {[%clk 0:00:50]} 20. h3 {[%clk 0:02:17]}  Bd7 {[%clk 0:00:45]} 21. Kh2 {[%clk 0:02:08]}  Bf8 {[%clk 0:00:41]} 22. Rab1 {[%clk 0:02:04]}  Bd6 {[%clk 0:00:39]} 23. Nb3 {[%clk 0:02:00]}  Nxb3 {[%clk 0:00:38]} 24. axb3 {[%clk 0:02:01]}  Rea8 {[%clk 0:00:27]} 25. Na4 {[%clk 0:01:48]}  Qb4 {[%clk 0:00:23]} 26. c5 {[%clk 0:01:44]}  Bf8 {[%clk 0:00:22]} 27. d6 {[%clk 0:01:42]}  Be6 {[%clk 0:00:15]} 28. Nb6 {[%clk 0:01:26]}  Ra2 {[%clk 0:00:14]} 29. Rb2 {[%clk 0:01:20]}  Rxb2 {[%clk 0:00:14]} 30. Qxb2 {[%clk 0:01:21]}  Ra5 {[%clk 0:00:14]} 31. Rd1 {[%clk 0:00:59]}  Rxc5 {[%clk 0:00:04]} 32. d7 {[%clk 0:00:57]}  Qb5 {[%clk 0:00:00]} 33. d8=Q {[%clk 0:00:56]} 1-0


[Site "https://www.chess.com"]

[Event "Titled Tuesday Blitz July 4 Early 2023"]
[White "Borgaonkar Akshay"]
[Black "Ocelak, Jakub"]
[WhiteFideId "25639110"]
[BlackFideId "23707933"]
[WhiteElo "2617"]
[BlackElo "2442"]
[Result "1-0"]
[Round "3"]
[TimeControl "180+2"]
[Date "2023.07.04"]
[WhiteClock "0:00:06"]
[BlackClock "0:00:01"]
[Board "112"]

1. Nf3 {[%clk 0:03:00]}  d5 {[%clk 0:02:57]} 2. b3 {[%clk 0:02:52]}  Nf6 {[%clk 0:02:53]} 3. Bb2 {[%clk 0:02:53]}  e6 {[%clk 0:02:53]} 4. e3 {[%clk 0:02:53]}  Be7 {[%clk 0:02:52]} 5. d4 {[%clk 0:02:53]}  O-O {[%clk 0:02:51]} 6. Bd3 {[%clk 0:02:53]}  c5 {[%clk 0:02:47]} 7. Nbd2 {[%clk 0:02:53]}  cxd4 {[%clk 0:02:45]} 8. exd4 {[%clk 0:02:54]}  b6 {[%clk 0:02:44]} 9. Ne5 {[%clk 0:02:35]}  Ba6 {[%clk 0:02:35]} 10. Bxa6 {[%clk 0:02:22]}  Nxa6 {[%clk 0:02:36]} 11. Nc6 {[%clk 0:02:23]}  Qd7 {[%clk 0:02:36]} 12. Nxe7+ {[%clk 0:02:24]}  Qxe7 {[%clk 0:02:36]} 13. O-O {[%clk 0:02:17]}  Rfc8 {[%clk 0:02:34]} 14. c3 {[%clk 0:02:14]}  Nc7 {[%clk 0:02:29]} 15. a4 {[%clk 0:02:11]}  Nce8 {[%clk 0:02:09]} 16. Nf3 {[%clk 0:02:09]}  Ne4 {[%clk 0:02:09]} 17. Qd3 {[%clk 0:02:09]}  N8f6 {[%clk 0:01:53]} 18. Ne5 {[%clk 0:02:07]}  Nd7 {[%clk 0:01:53]} 19. Nf3 {[%clk 0:01:58]}  Rc7 {[%clk 0:01:46]} 20. Rfc1 {[%clk 0:01:56]}  Rac8 {[%clk 0:01:45]} 21. c4 {[%clk 0:01:56]}  Nef6 {[%clk 0:01:36]} 22. Ba3 {[%clk 0:01:50]}  dxc4 {[%clk 0:01:27]} 23. bxc4 {[%clk 0:01:38]}  Qd8 {[%clk 0:01:28]} 24. Qb3 {[%clk 0:01:30]}  Nf8 {[%clk 0:01:23]} 25. a5 {[%clk 0:01:23]}  bxa5 {[%clk 0:00:56]} 26. Bxf8 {[%clk 0:01:18]}  Qxf8 {[%clk 0:00:51]} 27. Rxa5 {[%clk 0:01:17]}  Qd6 {[%clk 0:00:51]} 28. c5 {[%clk 0:01:07]}  Qf4 {[%clk 0:00:36]} 29. Qe3 {[%clk 0:01:01]}  Nd5 {[%clk 0:00:32]} 30. Qxf4 {[%clk 0:01:00]}  Nxf4 {[%clk 0:00:33]} 31. Rca1 {[%clk 0:00:58]}  Ra8 {[%clk 0:00:27]} 32. Kf1 {[%clk 0:00:55]}  f6 {[%clk 0:00:24]} 33. Ra6 {[%clk 0:00:54]}  Kf7 {[%clk 0:00:23]} 34. Nd2 {[%clk 0:00:53]}  Rd7 {[%clk 0:00:18]} 35. c6 {[%clk 0:00:48]}  Rxd4 {[%clk 0:00:15]} 36. Nf3 {[%clk 0:00:29]}  Rc4 {[%clk 0:00:10]} 37. g3 {[%clk 0:00:28]}  Nd5 {[%clk 0:00:08]} 38. Rxa7+ {[%clk 0:00:28]}  Rxa7 {[%clk 0:00:08]} 39. Rxa7+ {[%clk 0:00:29]}  Kg6 {[%clk 0:00:08]} 40. c7 {[%clk 0:00:21]}  Rxc7 {[%clk 0:00:07]} 41. Ra6 {[%clk 0:00:22]}  Kf7 {[%clk 0:00:07]} 42. Nd4 {[%clk 0:00:22]}  Re7 {[%clk 0:00:07]} 43. Nc6 {[%clk 0:00:21]}  Rd7 {[%clk 0:00:05]} 44. Nd4 {[%clk 0:00:22]}  Re7 {[%clk 0:00:05]} 45. f4 {[%clk 0:00:21]}  g6 {[%clk 0:00:04]} 46. Kf2 {[%clk 0:00:21]}  Nc3 {[%clk 0:00:04]} 47. Kf3 {[%clk 0:00:21]}  Nd5 {[%clk 0:00:04]} 48. Nb5 {[%clk 0:00:18]}  Rd7 {[%clk 0:00:04]} 49. Nd6+ {[%clk 0:00:18]}  Ke7 {[%clk 0:00:04]} 50. Ne4 {[%clk 0:00:19]}  Kf7 {[%clk 0:00:04]} 51. Nd6+ {[%clk 0:00:17]}  Ke7 {[%clk 0:00:04]} 52. Ne4 {[%clk 0:00:17]}  Kf7 {[%clk 0:00:04]} 53. Nc5 {[%clk 0:00:17]}  Re7 {[%clk 0:00:04]} 54. g4 {[%clk 0:00:17]}  Nc7 {[%clk 0:00:05]} 55. Rc6 {[%clk 0:00:16]}  Nd5 {[%clk 0:00:05]} 56. Ne4 {[%clk 0:00:15]}  Rc7 {[%clk 0:00:05]} 57. Ra6 {[%clk 0:00:12]}  Rd7 {[%clk 0:00:04]} 58. g5 {[%clk 0:00:11]}  fxg5 {[%clk 0:00:04]} 59. Nxg5+ {[%clk 0:00:11]}  Kf6 {[%clk 0:00:02]} 60. Nxe6 {[%clk 0:00:11]}  Kf7 {[%clk 0:00:02]} 61. Ng5+ {[%clk 0:00:11]}  Kg7 {[%clk 0:00:02]} 62. Ne6+ {[%clk 0:00:07]}  Kf7 {[%clk 0:00:02]} 63. Nc5 {[%clk 0:00:07]}  Re7 {[%clk 0:00:02]} 64. Ne4 {[%clk 0:00:07]}  Nc7 {[%clk 0:00:02]} 65. Rc6 {[%clk 0:00:07]}  Ne8 {[%clk 0:00:01]} 66. Ng5+ {[%clk 0:00:07]}  Kg7 {[%clk 0:00:02]} 67. h4 {[%clk 0:00:06]}  Nf6 {[%clk 0:00:03]} 68. Ne6+ {[%clk 0:00:06]}  Kf7 {[%clk 0:00:03]} 69. Nd4 {[%clk 0:00:05]}  Kg7 {[%clk 0:00:03]} 70. f5 {[%clk 0:00:05]}  Kf7 {[%clk 0:00:03]} 71. fxg6+ {[%clk 0:00:05]}  hxg6 {[%clk 0:00:04]} 72. Kf2 {[%clk 0:00:04]}  Rd7 {[%clk 0:00:04]} 73. Nf3 {[%clk 0:00:04]}  Ne4+ {[%clk 0:00:04]} 74. Ke3 {[%clk 0:00:05]}  Nf6 {[%clk 0:00:05]} 75. Ng5+ {[%clk 0:00:05]}  Kg7 {[%clk 0:00:05]} 76. Ne6+ {[%clk 0:00:06]}  Kf7 {[%clk 0:00:05]} 77. Ng5+ {[%clk 0:00:06]}  Kg7 {[%clk 0:00:06]} 78. Kf4 {[%clk 0:00:06]}  Nd5+ {[%clk 0:00:06]} 79. Ke5 {[%clk 0:00:06]}  Ne7 {[%clk 0:00:04]} 80. Ra6 {[%clk 0:00:02]}  Rc7 {[%clk 0:00:04]} 81. Ne6+ {[%clk 0:00:02]}  Kh6 {[%clk 0:00:04]} 82. Nxc7 {[%clk 0:00:03]}  Nf5 {[%clk 0:00:03]} 83. Nd5 {[%clk 0:00:04]}  Nxh4 {[%clk 0:00:03]} 84. Kf4 {[%clk 0:00:04]}  Nf5 {[%clk 0:00:02]} 85. Kg4 {[%clk 0:00:03]}  Ng7 {[%clk 0:00:02]} 86. Nf4 {[%clk 0:00:03]}  Kh7 {[%clk 0:00:02]} 87. Rxg6 {[%clk 0:00:04]}  Ne8 {[%clk 0:00:02]} 88. Re6 {[%clk 0:00:04]}  Ng7 {[%clk 0:00:03]} 89. Re7 {[%clk 0:00:04]}  Kg8 {[%clk 0:00:03]} 90. Ne6 {[%clk 0:00:05]}  Nxe6 {[%clk 0:00:01]} 91. Rxe6 {[%clk 0:00:06]} 1-0


[Site "https://www.chess.com"]

[Event "Titled Tuesday Blitz July 4 Early 2023"]
[White "Ganiev, Roman"]
[Black "Pandey Srishti"]
[WhiteFideId "4131452"]
[BlackFideId "35093290"]
[WhiteElo "2615"]
[BlackElo "2436"]
[Result "1-0"]
[Round "3"]
[TimeControl "180+2"]
[Date "2023.07.04"]
[WhiteClock "0:00:47"]
[BlackClock "0:01:44"]
[Board "115"]

1. e4 {[%clk 0:03:00]}  e5 {[%clk 0:02:59]} 2. d4 {[%clk 0:03:00]}  exd4 {[%clk 0:02:58]} 3. Qxd4 {[%clk 0:03:01]}  Nc6 {[%clk 0:02:58]} 4. Qe3 {[%clk 0:03:01]}  Nf6 {[%clk 0:02:58]} 5. Nc3 {[%clk 0:03:02]}  Bb4 {[%clk 0:02:56]} 6. Bd2 {[%clk 0:03:02]}  d5 {[%clk 0:02:55]} 7. exd5+ {[%clk 0:03:02]}  Ne7 {[%clk 0:02:56]} 8. Bc4 {[%clk 0:03:01]}  O-O {[%clk 0:02:54]} 9. O-O-O {[%clk 0:03:00]}  Bxc3 {[%clk 0:02:23]} 10. Bxc3 {[%clk 0:02:50]}  Nexd5 {[%clk 0:02:19]} 11. Bxd5 {[%clk 0:02:25]}  Nxd5 {[%clk 0:02:15]} 12. Qe5 {[%clk 0:02:25]}  Nxc3 {[%clk 0:02:09]} 13. Rxd8 {[%clk 0:02:22]}  Nxa2+ {[%clk 0:02:10]} 14. Kb1 {[%clk 0:02:22]}  Rxd8 {[%clk 0:02:11]} 15. Kxa2 {[%clk 0:02:15]}  Be6+ {[%clk 0:02:12]} 16. b3 {[%clk 0:02:14]}  a5 {[%clk 0:02:12]} 17. Kb2 {[%clk 0:01:56]}  a4 {[%clk 0:02:13]} 18. Nf3 {[%clk 0:01:55]}  axb3 {[%clk 0:02:10]} 19. cxb3 {[%clk 0:01:54]}  Rd3 {[%clk 0:02:11]} 20. Nd4 {[%clk 0:01:44]}  Rd2+ {[%clk 0:02:05]} 21. Kc3 {[%clk 0:01:37]}  Rxf2 {[%clk 0:02:02]} 22. Nxe6 {[%clk 0:01:32]}  fxe6 {[%clk 0:02:02]} 23. Qxe6+ {[%clk 0:01:31]}  Kh8 {[%clk 0:02:02]} 24. Re1 {[%clk 0:01:29]}  h6 {[%clk 0:02:02]} 25. Re2 {[%clk 0:01:29]}  Rf6 {[%clk 0:02:00]} 26. Qg4 {[%clk 0:01:24]}  Raf8 {[%clk 0:01:57]} 27. Re7 {[%clk 0:01:12]}  Rc6+ {[%clk 0:01:55]} 28. Kb2 {[%clk 0:01:07]}  Rf2+ {[%clk 0:01:55]} 29. Re2 {[%clk 0:01:07]}  Rf8 {[%clk 0:01:48]} 30. Qb4 {[%clk 0:00:53]}  Rff6 {[%clk 0:01:45]} 31. Qxb7 {[%clk 0:00:47]}  Rb6 {[%clk 0:01:44]} 1-0


[Site "https://www.chess.com"]

[Event "Titled Tuesday Blitz July 4 Early 2023"]
[White "Streltsov, Alexey"]
[Black "Jaskolka, Tomasz"]
[WhiteFideId "24104434"]
[BlackFideId "1170791"]
[WhiteElo "2431"]
[BlackElo "2612"]
[Result "0-1"]
[Round "3"]
[TimeControl "180+2"]
[Date "2023.07.04"]
[WhiteClock "0:01:15"]
[BlackClock "0:00:19"]
[Board "117"]

1. d4 {[%clk 0:03:00]}  d5 {[%clk 0:02:54]} 2. Nc3 {[%clk 0:03:01]}  e6 {[%clk 0:02:44]} 3. e4 {[%clk 0:03:01]}  Bb4 {[%clk 0:02:42]} 4. exd5 {[%clk 0:03:01]}  exd5 {[%clk 0:02:42]} 5. Bd3 {[%clk 0:03:02]}  Ne7 {[%clk 0:02:42]} 6. Nf3 {[%clk 0:03:01]}  c6 {[%clk 0:02:42]} 7. O-O {[%clk 0:03:01]}  Nd7 {[%clk 0:02:37]} 8. Ne2 {[%clk 0:03:01]}  Nf6 {[%clk 0:02:37]} 9. Bf4 {[%clk 0:03:02]}  Bg4 {[%clk 0:02:36]} 10. Ne5 {[%clk 0:02:58]}  Be6 {[%clk 0:02:25]} 11. c3 {[%clk 0:02:45]}  Bd6 {[%clk 0:02:24]} 12. Qb3 {[%clk 0:02:40]}  Qc7 {[%clk 0:02:09]} 13. Rae1 {[%clk 0:02:39]}  O-O {[%clk 0:02:05]} 14. h3 {[%clk 0:02:35]}  Rfe8 {[%clk 0:02:03]} 15. Bh2 {[%clk 0:02:35]}  Bf5 {[%clk 0:01:51]} 16. Qc2 {[%clk 0:02:32]}  Bxd3 {[%clk 0:01:51]} 17. Qxd3 {[%clk 0:02:32]}  Ng6 {[%clk 0:01:51]} 18. f4 {[%clk 0:02:32]}  Ne4 {[%clk 0:01:48]} 19. Ng3 {[%clk 0:02:32]}  Nxg3 {[%clk 0:01:39]} 20. Bxg3 {[%clk 0:02:33]}  c5 {[%clk 0:01:28]} 21. dxc5 {[%clk 0:02:23]}  Bxe5 {[%clk 0:01:22]} 22. fxe5 {[%clk 0:02:21]}  Qxc5+ {[%clk 0:01:22]} 23. Kh2 {[%clk 0:02:13]}  Re7 {[%clk 0:01:16]} 24. Rf5 {[%clk 0:02:05]}  Rae8 {[%clk 0:01:13]} 25. Ref1 {[%clk 0:02:03]}  Qc4 {[%clk 0:00:45]} 26. Qf3 {[%clk 0:02:03]}  Rf8 {[%clk 0:00:28]} 27. b3 {[%clk 0:01:58]}  Qc6 {[%clk 0:00:26]} 28. Rd1 {[%clk 0:01:55]}  Rd8 {[%clk 0:00:21]} 29. h4 {[%clk 0:01:54]}  Qe6 {[%clk 0:00:16]} 30. h5 {[%clk 0:01:51]}  Nf8 {[%clk 0:00:16]} 31. Rf1 {[%clk 0:01:51]}  Rde8 {[%clk 0:00:15]} 32. Bh4 {[%clk 0:01:48]}  Rd7 {[%clk 0:00:14]} 33. g4 {[%clk 0:01:49]}  b6 {[%clk 0:00:11]} 34. Bg3 {[%clk 0:01:47]}  d4 {[%clk 0:00:11]} 35. cxd4 {[%clk 0:01:44]}  Ree7 {[%clk 0:00:09]} 36. Bf2 {[%clk 0:01:42]}  Qd5 {[%clk 0:00:08]} 37. Be3 {[%clk 0:01:39]}  Qxf3 {[%clk 0:00:06]} 38. R5xf3 {[%clk 0:01:40]}  Ne6 {[%clk 0:00:06]} 39. Rc1 {[%clk 0:01:37]}  h6 {[%clk 0:00:05]} 40. Rc4 {[%clk 0:01:29]}  b5 {[%clk 0:00:06]} 41. Rb4 {[%clk 0:01:29]}  a5 {[%clk 0:00:06]} 42. Rxb5 {[%clk 0:01:28]}  Nxd4 {[%clk 0:00:07]} 43. Bxd4 {[%clk 0:01:28]}  Rxd4 {[%clk 0:00:08]} 44. Kg3 {[%clk 0:01:27]}  a4 {[%clk 0:00:08]} 45. b4 {[%clk 0:01:27]}  Rd2 {[%clk 0:00:07]} 46. a3 {[%clk 0:01:28]}  Re2 {[%clk 0:00:08]} 47. Rb8+ {[%clk 0:01:23]}  Kh7 {[%clk 0:00:08]} 48. Ra8 {[%clk 0:01:24]}  R2xe5 {[%clk 0:00:08]} 49. Rxa4 {[%clk 0:01:23]}  Re4 {[%clk 0:00:08]} 50. Ra5 {[%clk 0:01:23]}  f6 {[%clk 0:00:07]} 51. b5 {[%clk 0:01:23]}  Rc7 {[%clk 0:00:08]} 52. Kh3 {[%clk 0:01:20]}  Rcc4 {[%clk 0:00:08]} 53. Rg3 {[%clk 0:01:21]}  f5 {[%clk 0:00:07]} 54. g5 {[%clk 0:01:19]}  Rh4+ {[%clk 0:00:07]} 55. Kg2 {[%clk 0:01:19]}  Rc2+ {[%clk 0:00:08]} 56. Kf3 {[%clk 0:01:18]}  Rc3+ {[%clk 0:00:08]} 57. Kg2 {[%clk 0:01:18]}  Rc2+ {[%clk 0:00:08]} 58. Kf3 {[%clk 0:01:16]}  Rc3+ {[%clk 0:00:09]} 59. Kf2 {[%clk 0:01:17]}  Rf4+ {[%clk 0:00:09]} 60. Kg2 {[%clk 0:01:16]}  Rc2+ {[%clk 0:00:09]} 61. Kh3 {[%clk 0:01:16]}  hxg5 {[%clk 0:00:09]} 62. Rxg5 {[%clk 0:01:17]}  Rf3+ {[%clk 0:00:09]} 63. Rg3 {[%clk 0:01:18]}  Rff2 {[%clk 0:00:10]} 64. Rb3 {[%clk 0:01:13]}  Rh2+ {[%clk 0:00:10]} 65. Kg3 {[%clk 0:01:14]}  Rhg2+ {[%clk 0:00:11]} 66. Kf4 {[%clk 0:01:14]}  Rgf2+ {[%clk 0:00:11]} 67. Ke5 {[%clk 0:01:14]}  Rfe2+ {[%clk 0:00:12]} 68. Kxf5 {[%clk 0:01:13]}  Rc5+ {[%clk 0:00:12]} 69. Kg4 {[%clk 0:01:13]}  Re4+ {[%clk 0:00:13]} 70. Kf3 {[%clk 0:01:13]}  Rh4 {[%clk 0:00:13]} 71. a4 {[%clk 0:01:09]}  Rh3+ {[%clk 0:00:13]} 72. Ke4 {[%clk 0:01:09]}  Rxb3 {[%clk 0:00:14]} 73. Kd4 {[%clk 0:01:10]}  Rxh5 {[%clk 0:00:14]} 74. Ra7 {[%clk 0:01:10]}  Rb4+ {[%clk 0:00:13]} 75. Kc3 {[%clk 0:01:10]}  Rg4 {[%clk 0:00:14]} 76. Rd7 {[%clk 0:01:08]}  Rh3+ {[%clk 0:00:14]} 77. Kb2 {[%clk 0:01:08]}  Rg2+ {[%clk 0:00:14]} 78. Kc1 {[%clk 0:01:08]}  Rh1+ {[%clk 0:00:14]} 79. Rd1 {[%clk 0:01:09]}  Rxd1+ {[%clk 0:00:14]} 80. Kxd1 {[%clk 0:01:10]}  Ra2 {[%clk 0:00:14]} 81. Kc1 {[%clk 0:01:11]}  Rxa4 {[%clk 0:00:14]} 82. Kc2 {[%clk 0:01:12]}  Rb4 {[%clk 0:00:15]} 83. Kc3 {[%clk 0:01:12]}  Rxb5 {[%clk 0:00:16]} 84. Kc4 {[%clk 0:01:13]}  Rf5 {[%clk 0:00:16]} 85. Kd3 {[%clk 0:01:14]}  g6 {[%clk 0:00:17]} 86. Ke4 {[%clk 0:01:15]}  Kg7 {[%clk 0:00:18]} 87. Kd3 {[%clk 0:01:15]}  Kf6 {[%clk 0:00:19]} 0-1


[Site "https://www.chess.com"]